fUSD/lending_fUSD_20260408
["ID","MTS","AMOUNT","RATE_DAILY","PERIOD"]
[420048107,1775632239033,-500.0,9.943e-05,2]
[420048108,1775632239043,-1000.0,9.955e-05,2]
[420048109,1775632239053,-190.22054795,9.957e-05,2]
[420048110,1775632239062,-9999.99,9.957e-05,2]
[420048111,1775632239072,-175377.55,9.957e-05,2]
[420048112,1775632239082,-1211.11,9.957e-05,2]
[420048113,1775632239091,-499.99,9.957e-05,2]
[420048114,1775632239101,-14114.9,9.957e-05,2]
[420048115,1775632239110,-150.99,9.957e-05,2]
[420048116,1775632239120,-9999.99,9.957e-05,2]
[420048117,1775632239131,-518.32,9.958e-05,2]
[420048119,1775632239141,-150.99,9.958e-05,2]
[420048121,1775632239151,-299.99,9.958e-05,2]
[420048123,1775632239161,-5507.95,9.958e-05,2]
[420048125,1775632239172,-1621.24,9.958e-05,2]
[420048127,1775632239182,-7176.46,9.958e-05,2]
[420048129,1775632239193,-9999.99,9.958e-05,2]
[420048131,1775632239202,-999.99,9.958e-05,2]
[420048132,1775632239213,-727.93,9.958e-05,2]
[420048133,1775632239224,-4999.99,9.958e-05,2]
[420048134,1775632239234,-9999.99,9.958e-05,2]
[420048135,1775632239243,-9999.99,9.958e-05,2]
[420048136,1775632239253,-500.0,9.958e-05,2]
[420048137,1775632239263,-300.0,9.958e-05,2]
[420048138,1775632239273,-219963.48,9.958e-05,2]
[420048139,1775632239282,-1138.4,9.958e-05,2]
[420048140,1775632239292,-2408977.6535,9.959e-05,2]
[420048141,1775632239301,-150.0,9.959e-05,2]
[420048142,1775632239311,-1214.55116669,9.96e-05,2]
[420048143,1775632239321,-150.0,9.96e-05,2]
[420048144,1775632239331,-33041.7805,9.96e-05,2]
[420048145,1775632239340,-1000.0,9.96e-05,2]
[420048146,1775632239350,-1138.62194208,0.0001,2]
[420048147,1775632239360,-151.0,0.0001,2]
[420048148,1775632239369,-151.0,0.0001,2]
[420048149,1775632239378,-151.0,0.0001,2]
[420048150,1775632239388,-151.0,0.0001,2]
[420048151,1775632239397,-151.0,0.0001,2]
[420048152,1775632239406,-151.0,0.0001,2]
[420048153,1775632239416,-500.0,0.0001,2]
[420048154,1775632239425,-151.0,0.0001,2]
[420048155,1775632239435,-500.0,0.0001,2]
[420048156,1775632239445,-151.0,0.0001,2]
[420048158,1775632239454,-500.0,0.0001,2]
[420048160,1775632239464,-151.0,0.0001,2]
[420048162,1775632239473,-500.0,0.0001,2]
[420048165,1775632239482,-151.0,0.0001,2]
[420048166,1775632239491,-500.0,0.0001,2]
[420048167,1775632239500,-151.0,0.0001,2]
[420048168,1775632239510,-500.0,0.0001,2]
[420048169,1775632239521,-151.0,0.0001,2]
[420048170,1775632239530,-500.0,0.0001,2]
[420048171,1775632239540,-200.0,0.0001,2]
[420048172,1775632239550,-151.0,0.0001,2]
[420048173,1775632239560,-500.0,0.0001,2]
[420048174,1775632239569,-151.0,0.0001,2]
[420048175,1775632239578,-500.0,0.0001,2]
[420048176,1775632239588,-151.0,0.0001,2]
[420048177,1775632239598,-500.0,0.0001,2]
[420048178,1775632239607,-500.0,0.0001,2]
[420048179,1775632239616,-500.0,0.0001,2]
[420048180,1775632239626,-500.0,0.0001,2]
[420048181,1775632239636,-241.09834606,0.0001,2]
[420048182,1775632239646,-500.0,0.0001,2]
[420048183,1775632239655,-500.0,0.0001,2]
[420048184,1775632239664,-500.0,0.0001,2]
[420048185,1775632239673,-500.0,0.0001,2]
[420048186,1775632239682,-500.0,0.0001,2]
[420048187,1775632239692,-500.0,0.0001,2]
[420048188,1775632239701,-456.90165394,0.0001,2]
[420048189,1775632239711,-155.45941456,0.0001,2]
[420048190,1775632239722,-1199.20597015,0.0001,2]
[420048191,1775632239731,-152.45672918,0.0001,2]
[420048192,1775632239743,-152.55219078,0.0001,2]
[420048193,1775632239753,-176.21055756,0.0001,2]
[420048194,1775632239763,-160.33574843,0.0001,2]
[420048195,1775632239773,-158.80679274,0.0001,2]
[420048196,1775632239783,-465.75693296,0.0001,2]
[420048197,1775632239792,-151.0,0.0001,2]
[420048198,1775632239803,-11208.67371771,0.0001,2]
[420048199,1775632239812,-368.94634702,0.0001,2]
[420048200,1775632239822,-368.94634702,0.0001,2]
[420048201,1775632239832,-377.0,0.00010029,2]
[420048202,1775632239843,-476.0,0.00010049,2]
[420048203,1775632239853,-166.66,0.00010049,2]
[420048204,1775632239863,-325.0,0.00010069,2]
[420048205,1775632239872,-327.0,0.00010089,2]
[420048206,1775632239882,-63785.07,0.00010089,2]
[420048207,1775632239891,-270.0,0.00010121,2]
[420048208,1775632239901,-1125.0,0.00010141,2]
[420048209,1775632239910,-575.0,0.00010162,2]
[420048210,1775632239919,-956.0,0.00010182,2]
[420048211,1775632239929,-400.0,0.00010191,2]
[420048212,1775632239938,-400.0,0.00010194,2]
[420048213,1775632239948,-346.42,0.00010194,2]
[420048214,1775632239958,-400.0,0.00010197,2]
[420048215,1775632239968,-400.0,0.00010197,2]
[420048216,1775632239978,-159.69,0.00010197,2]
[420048217,1775632239987,-330.0,0.00010202,2]
[420048219,1775632239996,-247.0,0.00010222,2]
[420048221,1775632240006,-500.0,0.00010232,2]
[420048223,1775632240016,-1612.0,0.00010242,2]
[420048224,1775632240025,-1937.0,0.00010263,2]
[420048225,1775632240035,-24049.36,0.00010274,2]
[420048226,1775632240044,-175.0,0.00010283,2]
[420048227,1775632240055,-500.0,0.00010302,2]
[420048228,1775632240064,-500.0,0.00010302,2]
[420048229,1775632240074,-500.0,0.00010302,2]
[420048230,1775632240084,-500.0,0.00010302,2]
[420048231,1775632240093,-500.0,0.00010302,2]
[420048232,1775632240103,-500.0,0.00010302,2]
[420048233,1775632240112,-500.0,0.00010302,2]
[420048234,1775632240122,-595.10163207,0.00010302,2]
[420048235,1775632240132,-150.0,0.00010302,2]
[420048236,1775632240142,-150.0,0.00010302,2]
[420048237,1775632240152,-150.0,0.00010302,2]
[420048238,1775632240162,-150.0,0.00010302,2]
[420048239,1775632240172,-151.55394064,0.00010302,2]
[420048240,1775632240182,-182.15202066,0.00010302,2]
[420048241,1775632240192,-208.37237059,0.00010302,2]
[420048242,1775632240202,-500.0,0.00010302,2]
[420048243,1775632240211,-500.0,0.00010302,2]
[420048244,1775632240220,-500.0,0.00010302,2]
[420048245,1775632240230,-500.0,0.00010302,2]
[420048246,1775632240239,-500.0,0.00010302,2]
[420048247,1775632240249,-500.0,0.00010302,2]
[420048248,1775632240259,-500.0,0.00010302,2]
[420048249,1775632240269,-500.0,0.00010302,2]
[420048250,1775632240279,-500.0,0.00010302,2]
[420048251,1775632240288,-500.0,0.00010302,2]
[420048252,1775632240297,-500.0,0.00010302,2]
[420048253,1775632240307,-500.0,0.00010302,2]
[420048254,1775632240316,-500.0,0.00010302,2]
[420048255,1775632240326,-500.0,0.00010302,2]
[420048256,1775632240336,-500.0,0.00010302,2]
[420048257,1775632240345,-620.03833532,0.00010302,2]
[420048258,1775632240355,-341.376807,0.00010302,2]
[420048259,1775632240365,-165.86332065,0.00010302,2]
[420048260,1775632240376,-500.0,0.00010302,2]
[420048261,1775632240386,-500.0,0.00010302,2]
[420048262,1775632240396,-339.81765262,0.00010302,2]
[420048263,1775632240406,-500.0,0.00010302,2]
[420048264,1775632240417,-500.0,0.00010302,2]
[420048265,1775632240427,-399.40597196,0.00010302,2]
[420048266,1775632240436,-500.0,0.00010302,2]
[420048267,1775632240446,-500.0,0.00010302,2]
[420048268,1775632240456,-500.0,0.00010302,2]
[420048269,1775632240466,-160.5097946,0.00010302,2]
[420048270,1775632240475,-388.39476597,0.00010302,2]
[420048271,1775632240485,-151.26762084,0.00010302,2]
[420048272,1775632240495,-150.36042852,0.00010302,2]
[420048273,1775632240505,-150.88467267,0.00010302,2]
[420048274,1775632240516,-500.0,0.00010302,2]
[420048275,1775632240526,-500.0,0.00010302,2]
[420048276,1775632240535,-528.23575097,0.00010302,2]
[420048277,1775632240546,-500.0,0.00010302,2]
[420048278,1775632240556,-500.0,0.00010302,2]
[420048279,1775632240566,-500.0,0.00010302,2]
[420048280,1775632240576,-500.0,0.00010302,2]
[420048281,1775632240585,-500.0,0.00010302,2]
[420048282,1775632240595,-500.0,0.00010302,2]
[420048283,1775632240605,-500.0,0.00010302,2]
[420048284,1775632240615,-500.0,0.00010302,2]
[420048285,1775632240625,-500.0,0.00010302,2]
[420048286,1775632240635,-500.0,0.00010302,2]
[420048287,1775632240645,-500.0,0.00010302,2]
[420048288,1775632240655,-500.0,0.00010302,2]
[420048289,1775632240664,-500.0,0.00010302,2]
[420048290,1775632240674,-500.0,0.00010302,2]
[420048291,1775632240684,-361.74732129,0.00010302,2]
[420048292,1775632240693,-500.0,0.00010302,2]
[420048293,1775632240702,-500.0,0.00010302,2]
[420048294,1775632240712,-500.0,0.00010302,2]
[420048295,1775632240722,-500.0,0.00010302,2]
[420048296,1775632240731,-500.0,0.00010302,2]
[420048298,1775632240741,-500.0,0.00010302,2]
[420048300,1775632240751,-381.23774932,0.00010302,2]
[420048302,1775632240762,-500.0,0.00010302,2]
[420048304,1775632240771,-500.0,0.00010302,2]
[420048306,1775632240781,-500.0,0.00010302,2]
[420048308,1775632240791,-500.0,0.00010302,2]
[420048310,1775632240801,-420.12756453,0.00010302,2]
[420048312,1775632240811,-150.0,0.00010302,2]
[420048314,1775632240821,-500.0,0.00010302,2]
[420048316,1775632240831,-500.0,0.00010302,2]
[420048318,1775632240841,-150.0,0.00010302,2]
[420048320,1775632240851,-153.37566176,0.00010302,2]
[420048321,1775632240861,-500.0,0.00010302,2]
[420048322,1775632240871,-500.0,0.00010302,2]
[420048323,1775632240881,-500.0,0.00010302,2]
[420048325,1775632240891,-500.0,0.00010302,2]
[420048327,1775632240901,-272.94970253,0.00010302,2]
[420048328,1775632240910,-500.0,0.00010302,2]
[420048329,1775632240919,-500.0,0.00010302,2]
[420048330,1775632240929,-500.0,0.00010302,2]
[420048331,1775632240939,-500.0,0.00010302,2]
[420048332,1775632240948,-500.0,0.00010302,2]
[420048333,1775632240958,-500.0,0.00010302,2]
[420048334,1775632240968,-500.0,0.00010302,2]
[420048335,1775632240979,-500.0,0.00010302,2]
[420048336,1775632240989,-500.0,0.00010302,2]
[420048337,1775632240999,-243.76457116,0.00010302,2]
[420048338,1775632241009,-500.0,0.00010302,2]
[420048339,1775632241019,-500.0,0.00010302,2]
[420048340,1775632241028,-500.0,0.00010302,2]
[420048341,1775632241039,-500.0,0.00010302,2]
[420048342,1775632241048,-501.37015049,0.00010302,2]
[420048343,1775632241058,-500.0,0.00010302,2]
[420048344,1775632241069,-150.0,0.00010302,2]
[420048345,1775632241079,-500.0,0.00010302,2]
[420048346,1775632241089,-500.0,0.00010302,2]
[420048347,1775632241099,-500.0,0.00010302,2]
[420048348,1775632241109,-500.0,0.00010302,2]
[420048349,1775632241119,-500.0,0.00010302,2]
[420048350,1775632241129,-226.83643244,0.00010302,2]
[420048351,1775632241139,-150.0,0.00010302,2]
[420048352,1775632241148,-500.0,0.00010302,2]
[420048353,1775632241158,-500.0,0.00010302,2]
[420048354,1775632241168,-500.0,0.00010302,2]
[420048355,1775632241178,-500.0,0.00010302,2]
[420048356,1775632241188,-500.0,0.00010302,2]
[420048357,1775632241197,-500.0,0.00010302,2]
[420048358,1775632241206,-345.51112262,0.00010302,2]
[420048359,1775632241217,-500.0,0.00010302,2]
[420048360,1775632241227,-500.0,0.00010302,2]
[420048361,1775632241236,-150.0,0.00010302,2]
[420048362,1775632241246,-500.0,0.00010302,2]
[420048363,1775632241255,-150.0,0.00010302,2]
[420048364,1775632241264,-500.0,0.00010302,2]
[420048365,1775632241274,-150.0,0.00010302,2]
[420048366,1775632241283,-729.0,0.00010302,2]
[420048367,1775632241293,-500.0,0.00010302,2]
[420048368,1775632241302,-729.0,0.00010302,2]
[420048369,1775632241312,-294.91635494,0.00010302,2]
[420048370,1775632241321,-729.0,0.00010302,2]
[420048371,1775632241331,-150.0,0.00010302,2]
[420048372,1775632241666,-500.0,0.00010302,2]
[420048373,1775632241676,-729.0,0.00010302,2]
[420048374,1775632241685,-286.3666211,0.00010302,2]
[420048375,1775632241695,-520.29151548,0.00010302,2]
[420048376,1775632241704,-729.0,0.00010302,2]
[420048377,1775632241712,-729.0,0.00010302,2]
[420048378,1775632241722,-500.0,0.00010302,2]
[420048379,1775632241731,-729.0,0.00010302,2]
[420048380,1775632241741,-500.0,0.00010302,2]
[420048381,1775632241751,-729.0,0.00010302,2]
[420048382,1775632241760,-500.0,0.00010302,2]
[420048383,1775632241770,-500.0,0.00010302,2]
[420048384,1775632241780,-729.0,0.00010302,2]
[420048385,1775632241789,-500.0,0.00010302,2]
[420048386,1775632241799,-500.0,0.00010302,2]
[420048387,1775632241808,-729.0,0.00010302,2]
[420048388,1775632241818,-152.12238144,0.00010302,2]
[420048389,1775632241827,-500.0,0.00010302,2]
[420048390,1775632241838,-729.0,0.00010302,2]
[420048391,1775632241847,-500.0,0.00010302,2]
[420048392,1775632241857,-500.0,0.00010302,2]
[420048394,1775632241867,-729.0,0.00010302,2]
[420048396,1775632241876,-729.0,0.00010302,2]
[420048398,1775632241886,-500.0,0.00010302,2]
[420048400,1775632241895,-729.0,0.00010302,2]
[420048401,1775632241905,-500.0,0.00010302,2]
[420048402,1775632241914,-729.0,0.00010302,2]
[420048403,1775632241924,-500.0,0.00010302,2]
[420048404,1775632241934,-500.0,0.00010302,2]
[420048405,1775632241944,-729.0,0.00010302,2]
[420048406,1775632241954,-500.0,0.00010302,2]
[420048407,1775632241964,-412.62015671,0.00010302,2]
[420048408,1775632241975,-500.0,0.00010302,2]
[420048409,1775632241985,-500.0,0.00010302,2]
[420048410,1775632241995,-729.0,0.00010302,2]
[420048411,1775632242005,-500.0,0.00010302,2]
[420048412,1775632242014,-500.0,0.00010302,2]
[420048413,1775632242024,-500.0,0.00010302,2]
[420048414,1775632242033,-500.0,0.00010302,2]
[420048415,1775632242043,-500.0,0.00010302,2]
[420048416,1775632242053,-729.0,0.00010302,2]
[420048417,1775632242063,-500.0,0.00010302,2]
[420048418,1775632242072,-500.0,0.00010302,2]
[420048419,1775632242082,-500.0,0.00010302,2]
[420048420,1775632242092,-500.0,0.00010302,2]
[420048421,1775632242101,-500.0,0.00010302,2]
[420048422,1775632242111,-486.83324584,0.00010302,2]
[420048423,1775632242120,-729.0,0.00010302,2]
[420048424,1775632242130,-729.0,0.00010302,2]
[420048425,1775632242140,-729.0,0.00010302,2]
[420048426,1775632242149,-729.0,0.00010302,2]
[420048427,1775632242158,-729.0,0.00010302,2]
[420048428,1775632242168,-743.49073325,0.00010302,2]
[420048429,1775632242178,-150.0,0.00010302,2]
[420048430,1775632242187,-150.0,0.00010302,2]
[420048431,1775632242197,-1538.0,0.00010302,2]
[420048432,1775632242206,-150.0,0.00010302,2]
[420048433,1775632242216,-1538.0,0.00010302,2]
[420048434,1775632242226,-150.0,0.00010302,2]
[420048435,1775632242235,-1538.0,0.00010302,2]
[420048436,1775632242244,-150.0,0.00010302,2]
[420048437,1775632242254,-1538.0,0.00010302,2]
[420048438,1775632242264,-158.03469882,0.00010302,2]
[420048439,1775632242274,-1538.0,0.00010302,2]
[420048440,1775632242283,-1538.0,0.00010302,2]
[420048441,1775632242292,-1538.0,0.00010302,2]
[420048442,1775632242301,-1538.0,0.00010302,2]
[420048443,1775632242311,-1538.0,0.00010302,2]
[420048444,1775632242320,-1538.0,0.00010302,2]
[420048445,1775632242330,-1538.0,0.00010302,2]
[420048446,1775632242339,-1538.0,0.00010302,2]
[420048447,1775632242348,-1538.0,0.00010302,2]
[420048448,1775632242358,-1538.0,0.00010302,2]
[420048449,1775632242368,-1538.0,0.00010302,2]
[420048450,1775632242377,-1538.0,0.00010302,2]
[420048451,1775632242387,-1538.0,0.00010302,2]
[420048452,1775632242396,-1538.0,0.00010302,2]
[420048453,1775632242406,-1538.0,0.00010302,2]
[420048454,1775632242415,-1538.0,0.00010302,2]
[420048455,1775632242424,-1538.0,0.00010302,2]
[420048456,1775632242433,-1538.0,0.00010302,2]
[420048457,1775632242442,-1538.0,0.00010302,2]
[420048458,1775632242451,-1555.72513774,0.00010302,2]
[420048459,1775632242462,-1740.0,0.00010303,2]
[420048460,1775632242472,-3708.4354623,0.00010311,2]
[420048461,1775632242482,-315.36,0.00010321,2]
[420048462,1775632242492,-1202.0,0.00010323,2]
[420048463,1775632242501,-400.0,0.00010324,2]
[420048464,1775632242511,-151.88,0.00010324,2]
[420048465,1775632242520,-400.0,0.00010327,2]
[420048466,1775632242530,-309.56,0.00010327,2]
[420048467,1775632242539,-166.66,0.00010381,2]
[420048468,1775632242549,-150.0,0.000104,2]
[420048469,1775632242559,-400.0,0.00010418,2]
[420048470,1775632242569,-400.0,0.00010418,2]
[420048471,1775632242579,-400.0,0.00010418,2]
[420048472,1775632242589,-236.92,0.00010418,2]
[420048473,1775632242599,-576.75688538,0.00010473,2]
[420048474,1775632242608,-12753.37,0.00010475,2]
[420048475,1775632242618,-29999.99,0.00010475,2]
[420048476,1775632242627,-9999.99,0.00010475,2]
[420048477,1775632242636,-19999.99,0.00010475,2]
[420048478,1775632242646,-501.73893264,0.00010491,2]
[420048479,1775632242655,-550.3869963,0.00010491,2]
[420048480,1775632242664,-1000.0,0.00010491,2]
[420048481,1775632242674,-1000.0,0.00010491,2]
[420048482,1775632242684,-1000.0,0.00010491,2]
[420048483,1775632242693,-1001.20287893,0.00010491,2]
[420048484,1775632242703,-1000.0,0.00010491,2]
[420048485,1775632242712,-1000.0,0.00010491,2]
[420048486,1775632242722,-1000.0,0.00010491,2]
[420048487,1775632242731,-1000.54232895,0.00010491,2]
[420048488,1775632242740,-501.09261497,0.00010491,2]
[420048489,1775632242750,-1000.0,0.00010491,2]
[420048490,1775632242760,-709.52918559,0.00010491,2]
[420048491,1775632242770,-1000.0,0.00010491,2]
[420048492,1775632242780,-1000.0,0.00010491,2]
[420048493,1775632242789,-500.0,0.00010506,2]
[420048494,1775632242798,-200.0,0.00010548,2]
[420048495,1775632242808,-1243.57659104,0.00010548,2]
[420048496,1775632242818,-3906747.79984096,0.000107,2]
[420048497,1775632242827,-166.66,0.00010713,2]
[420048498,1775632242837,-191.78,0.00010779,2]
[420048499,1775632242846,-500.0,0.0001078,2]
[420048500,1775632242856,-600.0,0.00010783,2]
[420048501,1775632242865,-250.0,0.00010842,2]
[420048502,1775632242875,-420.0,0.00010842,2]
[420048503,1775632242884,-1680.0,0.00010842,2]
[420048504,1775632242894,-250.0,0.00010843,2]
[420048505,1775632242902,-250.0,0.00010843,2]
[420048506,1775632242911,-193.0,0.00010843,2]
[420048507,1775632242920,-5000.0,0.00010843,2]
[420048508,1775632242930,-420.0,0.00010843,2]
[420048509,1775632242939,-266.76913297,0.00010872,2]
[420048510,1775632242948,-187.0,0.00010904,2]
[420048511,1775632242958,-313.0,0.00010926,2]
[420048512,1775632242969,-255.0,0.00010936,2]
[420048513,1775632242978,-500.0,0.00010959,2]
[420048514,1775632242987,-211.20461087,0.00010989,2]
[420048515,1775632242997,-178.43637707,0.00010989,2]
[420048516,1775632243007,-295.87164724,0.00010989,2]
[420048517,1775632243017,-151.502,0.00011022,2]
[420048518,1775632243028,-500.87166627,0.00011038,2]
[420048519,1775632243038,-1500.0,0.00011038,2]
[420048520,1775632243048,-1391.89335958,0.00011038,2]
[420048521,1775632243059,-1500.0,0.00011038,2]
[420048522,1775632243069,-1500.0,0.00011038,2]
[420048523,1775632243080,-1500.0,0.00011038,2]
[420048524,1775632243090,-1500.0,0.00011038,2]
[420048525,1775632243100,-1500.0,0.00011038,2]
[420048526,1775632243113,-1500.0,0.00011038,2]
[420048527,1775632243124,-166.66,0.00011044,2]
[420048528,1775632243134,-500.0,0.00011054,2]
[420048529,1775632243145,-200.0,0.00011096,2]
[420048530,1775632243155,-1289.58892491,0.00011096,2]
[420048531,1775632243166,-12212.87692995,0.00011099,2]
[420048532,1775632243177,-12212.87692991,0.00011099,2]
[420048533,1775632243188,-12212.87692991,0.00011099,2]
[420048534,1775632243199,-12212.87692991,0.00011099,2]
[420048535,1775632243209,-217.11849373,0.00011126,2]
[420048536,1775632243220,-450.98425114,0.0001122,2]
[420048537,1775632243230,-378.35777414,0.0001122,2]
[420048538,1775632243240,-594.05680571,0.0001122,2]
[420048539,1775632243253,-12212.87692991,0.00011232,2]
[420048540,1775632243263,-152.18,0.00011233,2]
[420048541,1775632243274,-194.0,0.00011278,2]
[420048543,1775632243285,-495.0,0.000113,2]
[420048544,1775632243295,-500.0,0.00011328,2]
[420048545,1775632243306,-13609.6051605,0.00011339,2]
[420048547,1775632243316,-166.66,0.00011376,2]
[420048549,1775632243327,-160.0,0.00011509,2]
[420048550,1775632243337,-595.256571,0.00011509,2]
[420048552,1775632243347,-1030.513143,0.00011509,2]
[420048554,1775632243357,-197.421536,0.00011537,2]
[420048556,1775632243368,-160.0,0.00011537,2]
[420048557,1775632243378,-805.849006,0.00011537,2]
[420048558,1775632243389,-1451.698012,0.00011537,2]
[420048559,1775632243399,-12212.87692991,0.00011575,2]
[420048560,1775632243409,-515.28558372,0.00011586,2]
[420048561,1775632243419,-2000.0,0.00011586,2]
[420048562,1775632243429,-2000.0,0.00011586,2]
[420048563,1775632243439,-1894.44940628,0.00011586,2]
[420048564,1775632243450,-2000.0,0.00011586,2]
[420048565,1775632243459,-2000.0,0.00011586,2]
[420048566,1775632243469,-2039.0506784,0.00011586,2]
[420048567,1775632243479,-500.0,0.00011602,2]
[420048568,1775632243490,-200.0,0.00011644,2]
[420048569,1775632243500,-709.82439652,0.00011644,2]
[420048570,1775632243510,-169.447,0.000117,2]
[420048571,1775632243521,-166.66,0.00011708,2]
[420048572,1775632243532,-475.06832926,0.00011744,2]
[420048573,1775632243542,-475.06832926,0.00011744,2]
[420048574,1775632243553,-475.06832926,0.00011744,2]
[420048575,1775632243563,-500.0,0.00011876,2]
[420048576,1775632243574,-12212.87692991,0.00011919,2]
[420048577,1775632243585,-2351.0,0.00011926,2]
[420048578,1775632243596,-587.0,0.00011927,2]
[420048579,1775632243606,-433.0,0.00012029,2]
[420048580,1775632243616,-160.0,0.0001208,2]
[420048581,1775632243626,-1971.513243,0.0001208,2]
[420048582,1775632243637,-3783.026487,0.0001208,2]
[420048583,1775632243646,-1217.57026,0.00012085,2]
[420048584,1775632243656,-1098.885008,0.00012113,2]
[420048585,1775632243666,-2500.0,0.00012134,2]
[420048586,1775632243677,-2501.79789242,0.00012134,2]
[420048587,1775632243687,-2330.49918647,0.00012134,2]
[420048588,1775632243697,-2503.61823881,0.00012134,2]
[420048589,1775632243707,-521.7952616,0.0001215,2]
[420048590,1775632243717,-160.0,0.00012162,2]
[420048591,1775632243726,-1968.27748,0.00012162,2]
[420048592,1775632243736,-3776.554961,0.00012162,2]
[420048593,1775632243746,-201.60184993,0.00012192,2]
[420048594,1775632243755,-12212.87692991,0.00012263,2]
[420048595,1775632243765,-187.06,0.00012286,2]
[420048596,1775632243775,-185.26,0.0001241,11]
[420048597,1775632243785,-150.0,0.00012416,2]
[420048598,1775632243796,-285.50676789,0.00012416,2]
[420048599,1775632243807,-12212.87692991,0.00012606,2]
[420048600,1775632243817,-3003.75016468,0.00012682,2]
[420048601,1775632243827,-2688.42715,0.00012684,2]
[420048602,1775632243838,-600.0,0.00012708,2]
[420048603,1775632243849,-13609.6051605,0.00012763,2]
[420048604,1775632243859,-2684.014746,0.0001277,2]
[420048605,1775632243869,-1138.62194207,0.00012784,2]
[420048606,1775632243879,-12212.87692991,0.0001295,2]
[420048607,1775632243889,-81454.46287592,0.00012999,2]
[420048608,1775632243899,-191.4154,0.00013,2]
[420048609,1775632243909,-250.0,0.00013,2]
[420048610,1775632243919,-3620.21391383,0.0001305,2]
[420048611,1775632243929,-506.0,0.000131,2]
[420048612,1775632243939,-3292.0,0.00013118,2]
[420048613,1775632243950,-823.0,0.0001312,2]
[420048614,1775632243961,-250.0,0.00013176,2]
[420048615,1775632243972,-736.0,0.00013232,2]
[420048616,1775632243982,-422.091023,0.00013235,2]
[420048617,1775632243992,-571.420204,0.00013267,2]
[420048618,1775632244002,-150.0,0.00013443,2]
[420048619,1775632244012,-150.0,0.00013445,2]
[420048620,1775632244022,-150.0,0.00013445,2]
[420048621,1775632244032,-9891.79784251,0.000135,7]
[420048622,1775632244043,-1000.0,0.000135,2]
[420048623,1775632244053,-501.50073946,0.00013698,2]
[420048624,1775632244063,-500.0,0.00013698,2]
[420048625,1775632244074,-500.0,0.00013698,2]
[420048626,1775632244083,-500.0,0.00013698,2]
[420048627,1775632244093,-500.0,0.00013698,2]
[420048628,1775632244102,-500.0,0.00013698,2]
[420048629,1775632244112,-500.0,0.00013698,2]
[420048631,1775632244122,-500.0,0.00013698,2]
[420048633,1775632244131,-500.0,0.00013698,2]
[420048634,1775632244142,-500.0,0.00013698,2]
[420048637,1775632244152,-500.0,0.00013698,2]
[420048639,1775632244163,-500.0,0.00013698,2]
[420048641,1775632244173,-500.0,0.00013698,2]
[420048643,1775632244183,-500.0,0.00013698,2]
[420048645,1775632244193,-500.0,0.00013698,2]
[420048646,1775632244203,-500.0,0.00013698,2]
[420048648,1775632244214,-500.0,0.00013698,2]
[420048651,1775632244224,-500.0,0.00013698,2]
[420048652,1775632244232,-375.13,0.00013698,2]
[420048654,1775632244242,-500.0,0.00013698,2]
[420048656,1775632244252,-500.0,0.00013698,2]
[420048658,1775632244261,-500.0,0.00013698,2]
[420048660,1775632244271,-500.0,0.00013698,2]